fUST/lending_fUST_20240826
["ID","MTS","AMOUNT","RATE_DAILY","PERIOD"]
[335982145,1724651448614,-320.0,0.00012612,2]
[335982146,1724651448625,-320.0,0.00012612,2]
[335982147,1724651448636,-320.0,0.00012612,2]
[335982148,1724651448645,-320.0,0.00012612,2]
[335982149,1724651448655,-320.0,0.00012612,2]
[335982150,1724651448666,-320.0,0.00012612,2]
[335982151,1724651448675,-320.0,0.00012612,2]
[335982152,1724651448685,-320.0,0.00012612,2]
[335982153,1724651448694,-320.0,0.00012612,2]
[335982154,1724651448704,-320.0,0.00012612,2]
[335982155,1724651448713,-320.0,0.00012612,2]
[335982156,1724651448722,-320.0,0.00012612,2]
[335982157,1724651448731,-320.0,0.00012612,2]
[335982158,1724651448744,-320.0,0.00012612,2]
[335982159,1724651448754,-320.0,0.00012612,2]
[335982160,1724651448764,-320.0,0.00012612,2]
[335982161,1724651448773,-320.0,0.00012612,2]
[335982162,1724651448784,-320.0,0.00012612,2]
[335982163,1724651448793,-320.0,0.00012612,2]
[335982164,1724651448802,-174.0,0.00012612,2]
[335982165,1724651448812,-174.0,0.00012612,2]
[335982166,1724651448822,-174.0,0.00012612,2]
[335982167,1724651448833,-174.0,0.00012612,2]
[335982168,1724651448843,-174.0,0.00012612,2]
[335982169,1724651448853,-174.0,0.00012612,2]
[335982170,1724651448863,-174.0,0.00012612,2]
[335982171,1724651448872,-174.0,0.00012612,2]
[335982172,1724651448882,-174.0,0.00012612,2]
[335982173,1724651448892,-174.0,0.00012612,2]
[335982174,1724651448901,-174.0,0.00012612,2]
[335982175,1724651448912,-174.0,0.00012612,2]
[335982176,1724651448922,-174.0,0.00012612,2]
[335982177,1724651448932,-174.0,0.00012612,2]
[335982178,1724651448942,-174.0,0.00012612,2]
[335982179,1724651448953,-174.0,0.00012612,2]
[335982180,1724651448963,-174.0,0.00012612,2]
[335982181,1724651448973,-174.0,0.00012612,2]
[335982182,1724651448984,-174.0,0.00012612,2]
[335982183,1724651448994,-174.0,0.00012612,2]
[335982184,1724651449003,-421.0,0.00012613,2]
[335982185,1724651449013,-421.0,0.00012613,2]
[335982186,1724651449023,-752.78455127,0.00012629,2]
[335982187,1724651449033,-500.0,0.00012699,2]
[335982188,1724651449042,-500.0,0.00012699,2]
[335982189,1724651449052,-500.0,0.00012699,2]
[335982190,1724651449061,-500.0,0.00012699,2]
[335982191,1724651449070,-500.0,0.00012699,2]
[335982192,1724651449079,-326.22,0.00012699,2]
[335982193,1724651449089,-470.29,0.00012699,2]
[335982194,1724651449098,-500.0,0.00012699,2]
[335982195,1724651449108,-500.0,0.00012699,2]
[335982196,1724651449118,-500.0,0.00012699,2]
[335982197,1724651449127,-500.0,0.00012699,2]
[335982198,1724651449136,-500.0,0.00012699,2]
[335982199,1724651449145,-500.0,0.00012699,2]
[335982200,1724651449155,-500.0,0.00012699,2]
[335982201,1724651449165,-500.0,0.00012699,2]
[335982202,1724651449175,-500.0,0.00012699,2]
[335982203,1724651449186,-500.0,0.00012699,2]
[335982204,1724651449196,-500.0,0.00012699,2]
[335982205,1724651449205,-500.0,0.00012699,2]
[335982206,1724651449215,-500.0,0.00012699,2]
[335982207,1724651449225,-500.0,0.00012699,2]
[335982208,1724651449235,-500.0,0.00012699,2]
[335982209,1724651449244,-500.0,0.00012699,2]
[335982210,1724651449255,-500.0,0.00012699,2]
[335982211,1724651449266,-500.0,0.00012699,2]
[335982212,1724651449276,-500.0,0.00012699,2]
[335982213,1724651449286,-2597.51595188,0.00012779,2]
[335982214,1724651449296,-3094.87417801,0.00012779,2]
[335982215,1724651449306,-187.30306813,0.00012779,2]
[335982216,1724651449316,-271.82761531,0.00012782,2]
[335982217,1724651449327,-743.4,0.00012796,2]
[335982218,1724651449336,-1867.14,0.00012796,2]
[335982219,1724651449346,-500.0,0.00012796,2]
[335982220,1724651449355,-569.25,0.00012796,2]
[335982221,1724651449366,-500.0,0.00012796,2]
[335982222,1724651449376,-595.62,0.00012796,2]
[335982223,1724651449386,-500.0,0.00012796,2]
[335982224,1724651449395,-500.0,0.00012805,2]
[335982225,1724651449404,-801.54,0.00012805,2]
[335982226,1724651449414,-9038.31,0.00012805,2]
[335982227,1724651449424,-500.0,0.00012805,2]
[335982228,1724651449434,-2432.08,0.00012805,2]
[335982229,1724651449444,-500.0,0.00012805,2]
[335982230,1724651449453,-27875.82946941,0.00012806,5]
[335982231,1724651449463,-564.67,0.00012806,2]
[335982232,1724651449473,-500.0,0.00012806,2]
[335982233,1724651449483,-653.9,0.00012806,2]
[335982234,1724651449492,-500.0,0.00012806,2]
[335982235,1724651449501,-157.79404567,0.00012806,2]
[335982236,1724651450201,-500.0,0.00012532,2]
[335982237,1724651450210,-325.1248542,0.00012806,2]
[335982238,1724651450220,-500.0,0.00012806,2]
[335982239,1724651450229,-500.0,0.00012806,2]
[335982240,1724651450239,-500.0,0.00012806,2]
[335982241,1724651450248,-500.0,0.00012806,2]
[335982242,1724651450258,-9737.48,0.00012806,2]
[335982243,1724651450268,-500.0,0.00012806,2]
[335982244,1724651450278,-2600.67,0.00012806,2]
[335982245,1724651450287,-500.0,0.00012806,2]
[335982246,1724651450297,-622.95,0.00012806,2]
[335982247,1724651450306,-735.22,0.00012806,2]
[335982248,1724651450316,-4078.22,0.00012806,2]
[335982249,1724651450325,-500.0,0.00012806,2]
[335982250,1724651450334,-500.0,0.00012806,2]
[335982251,1724651450343,-500.0,0.00012806,2]
[335982252,1724651450353,-500.0,0.00012806,2]
[335982253,1724651450363,-2984.54,0.00012806,2]
[335982254,1724651450373,-500.0,0.00012806,2]
[335982255,1724651450382,-163.05606085,0.00012806,2]
[335982256,1724651450391,-1214.86,0.00012806,2]
[335982257,1724651450401,-500.0,0.00012806,2]
[335982258,1724651450410,-500.0,0.00012806,2]
[335982259,1724651450420,-500.0,0.00012806,2]
[335982260,1724651450430,-500.0,0.00012806,2]
[335982261,1724651450439,-558.88,0.00012806,2]
[335982262,1724651450450,-500.0,0.00012806,2]
[335982263,1724651450459,-500.0,0.00012806,2]
[335982264,1724651450470,-626.45,0.00012806,2]
[335982265,1724651450480,-500.0,0.00012806,2]
[335982266,1724651450489,-500.0,0.00012806,2]
[335982267,1724651450499,-500.0,0.00012806,2]
[335982268,1724651450508,-23655.5,0.00012806,2]
[335982269,1724651450517,-500.0,0.00012806,2]
[335982270,1724651450527,-500.0,0.00012806,2]
[335982271,1724651450536,-500.0,0.00012806,2]
[335982272,1724651450546,-500.0,0.00012806,2]
[335982273,1724651450555,-664.44,0.00012806,2]
[335982274,1724651450565,-634.91,0.00012806,2]
[335982275,1724651450574,-500.0,0.00012806,2]
[335982276,1724651450583,-640.98,0.00012806,2]
[335982277,1724651450592,-1445.08,0.00012806,2]
[335982278,1724651450602,-565.55,0.00012806,2]
[335982279,1724651450611,-500.0,0.00012806,2]
[335982280,1724651450621,-593.61,0.00012806,2]
[335982281,1724651450630,-500.0,0.00012806,2]
[335982282,1724651450640,-500.0,0.00012806,2]
[335982283,1724651450650,-500.0,0.00012806,2]
[335982284,1724651450659,-500.0,0.00012806,2]
[335982285,1724651450669,-500.0,0.00012806,2]
[335982286,1724651450678,-1260.5,0.00012806,2]
[335982287,1724651450688,-500.0,0.00012806,2]
[335982288,1724651450697,-500.0,0.00012806,2]
[335982289,1724651450706,-500.0,0.00012806,2]
[335982290,1724651450716,-963.93,0.00012806,2]
[335982291,1724651450726,-929.87,0.00012806,2]
[335982292,1724651450736,-500.0,0.00012806,2]
[335982293,1724651450750,-500.0,0.00012806,2]
[335982294,1724651450760,-716.67,0.00012806,2]
[335982295,1724651450770,-500.0,0.00012806,2]
[335982296,1724651450779,-500.0,0.00012806,2]
[335982297,1724651450789,-500.0,0.00012806,2]
[335982298,1724651450799,-500.0,0.00012806,2]
[335982299,1724651450808,-500.0,0.00012806,2]
[335982300,1724651450818,-500.0,0.00012806,2]
[335982301,1724651450829,-500.0,0.00012806,2]
[335982302,1724651450839,-500.0,0.00012806,2]
[335982303,1724651450851,-500.0,0.00012806,2]
[335982304,1724651450862,-2128.99,0.00012806,2]
[335982305,1724651450873,-576.84,0.00012806,2]
[335982306,1724651450883,-500.0,0.00012806,2]
[335982307,1724651450892,-500.0,0.00012806,2]
[335982308,1724651450902,-500.0,0.00012806,2]
[335982309,1724651450912,-500.0,0.00012806,2]
[335982310,1724651450922,-500.0,0.00012806,2]
[335982311,1724651450932,-500.0,0.00012806,2]
[335982312,1724651450941,-500.0,0.00012806,2]
[335982313,1724651450952,-817.29,0.00012806,2]
[335982314,1724651450962,-500.0,0.00012806,2]
[335982315,1724651450971,-500.0,0.00012806,2]
[335982316,1724651450981,-500.0,0.00012807,2]
[335982317,1724651450990,-770.74,0.00012807,2]
[335982318,1724651451000,-500.0,0.00012807,2]
[335982319,1724651451010,-500.0,0.00012807,2]
[335982320,1724651451019,-500.0,0.00012807,2]
[335982321,1724651451029,-500.0,0.00012807,2]
[335982322,1724651451039,-500.0,0.00012807,2]
[335982323,1724651451048,-500.0,0.00012807,2]
[335982324,1724651451058,-902.04,0.00012807,2]
[335982325,1724651451069,-500.0,0.00012807,2]
[335982326,1724651451079,-558.15,0.00012807,2]
[335982327,1724651451089,-646.49,0.00012807,2]
[335982328,1724651451099,-680.65,0.00012807,2]
[335982329,1724651451109,-704.99,0.00012807,2]
[335982330,1724651451119,-500.0,0.00012807,2]
[335982331,1724651451128,-707.17,0.00012807,2]
[335982332,1724651451138,-560.64,0.00012807,2]
[335982333,1724651451148,-807.35,0.00012807,2]
[335982334,1724651451157,-500.0,0.00012807,2]
[335982335,1724651451167,-995.98,0.00012807,2]
[335982336,1724651451177,-500.0,0.00012807,2]
[335982337,1724651451186,-545.24,0.00012807,2]
[335982338,1724651451196,-937.82,0.00012807,2]
[335982339,1724651451205,-500.0,0.00012807,2]
[335982340,1724651451215,-500.0,0.00012807,2]
[335982341,1724651451224,-616.77,0.00012807,2]
[335982342,1724651451234,-500.0,0.00012807,2]
[335982343,1724651451243,-500.0,0.00012807,2]
[335982344,1724651451252,-500.0,0.00012807,2]
[335982345,1724651451262,-846.83,0.00012807,2]
[335982346,1724651451271,-500.0,0.00012807,2]
[335982347,1724651451281,-500.0,0.00012807,2]
[335982348,1724651451290,-616.18,0.00012807,2]
[335982349,1724651451300,-929.07,0.00012807,2]
[335982350,1724651451311,-517.2,0.00012807,2]
[335982351,1724651451334,-500.0,0.00012807,2]
[335982352,1724651451355,-632.02,0.00012807,2]
[335982353,1724651451380,-846.41,0.00012807,2]
[335982354,1724651451406,-912.22,0.00012807,2]
[335982355,1724651451429,-500.0,0.00012807,2]
[335982356,1724651451453,-749.99,0.00012807,2]
[335982357,1724651451481,-635.25,0.00012807,2]
[335982358,1724651451505,-689.64,0.00012807,2]
[335982359,1724651451526,-3423.6,0.00012807,2]
[335982360,1724651451548,-500.0,0.00012807,2]
[335982361,1724651451562,-500.0,0.00012807,2]
[335982362,1724651451572,-605.35,0.00012807,2]
[335982363,1724651451581,-500.0,0.00012807,2]
[335982364,1724651451591,-500.0,0.00012807,2]
[335982365,1724651451600,-500.0,0.00012807,2]
[335982366,1724651451610,-741.36,0.00012807,2]
[335982367,1724651451619,-500.0,0.00012807,2]
[335982368,1724651451628,-741.57,0.00012807,2]
[335982369,1724651451637,-644.99,0.00012807,2]
[335982370,1724651451647,-500.0,0.00012807,2]
[335982371,1724651451656,-973.67,0.00012807,2]
[335982372,1724651451666,-605.83,0.00012807,2]
[335982373,1724651451675,-783.85,0.00012807,2]
[335982374,1724651451686,-500.0,0.00012807,2]
[335982375,1724651451695,-535.67,0.00012807,2]
[335982376,1724651451704,-1117.16,0.00012807,2]
[335982377,1724651451713,-2008.6,0.00012807,2]
[335982378,1724651451723,-8356.54,0.00012807,2]
[335982379,1724651451733,-500.0,0.00012807,2]
[335982380,1724651451745,-4380.13,0.00012807,2]
[335982381,1724651451754,-500.0,0.00012807,2]
[335982382,1724651451765,-640.28,0.00012807,2]
[335982383,1724651451774,-535.04,0.00012807,2]
[335982384,1724651451783,-609.12,0.00012807,2]
[335982385,1724651451793,-551.85,0.00012807,2]
[335982386,1724651451802,-500.0,0.00012807,2]
[335982387,1724651451811,-500.0,0.00012807,2]
[335982388,1724651451821,-819.09,0.00012807,2]
[335982389,1724651451831,-534.52,0.00012807,2]
[335982390,1724651451842,-500.0,0.00012807,2]
[335982391,1724651451851,-500.0,0.00012807,2]
[335982392,1724651451861,-592.9,0.00012807,2]
[335982393,1724651451871,-500.0,0.00012807,2]
[335982394,1724651451881,-898.45,0.00012807,2]
[335982395,1724651452102,-500.0,0.00012807,2]
[335982396,1724651452111,-500.0,0.00012807,2]
[335982397,1724651452120,-619.63,0.00012807,2]
[335982398,1724651452129,-941.9,0.00012807,2]
[335982399,1724651452138,-500.0,0.00012807,2]
[335982400,1724651452147,-983.46,0.00012807,2]
[335982401,1724651452156,-736.72,0.00012807,2]
[335982402,1724651452165,-500.0,0.00012807,2]
[335982403,1724651452174,-500.0,0.00012807,2]
[335982404,1724651452183,-698.09,0.00012807,2]
[335982405,1724651452193,-575.47,0.00012807,2]
[335982406,1724651452202,-339.82085912,0.00012808,2]
[335982407,1724651452211,-500.0,0.00012809,2]
[335982408,1724651452220,-500.0,0.00012809,2]
[335982409,1724651452229,-500.0,0.00012809,2]
[335982410,1724651452238,-500.0,0.00012809,2]
[335982411,1724651452247,-500.0,0.00012809,2]
[335982412,1724651452256,-500.0,0.00012809,2]
[335982413,1724651452265,-500.0,0.00012809,2]
[335982414,1724651452274,-500.0,0.00012809,2]
[335982415,1724651452283,-500.0,0.00012809,2]
[335982416,1724651452291,-500.0,0.00012809,2]
[335982417,1724651452301,-500.0,0.00012809,2]
[335982418,1724651452310,-927.74,0.00012809,2]
[335982419,1724651452319,-930.48,0.00012809,2]
[335982420,1724651452328,-500.0,0.00012809,2]
[335982421,1724651452337,-500.0,0.00012809,2]
[335982422,1724651452346,-500.0,0.00012809,2]
[335982423,1724651452354,-500.0,0.00012809,2]
[335982424,1724651452363,-554.82,0.00012809,2]
[335982425,1724651452373,-854.73,0.00012809,2]
[335982426,1724651452382,-1088.6,0.00012809,2]
[335982427,1724651452391,-228.38501131,0.00012809,2]
[335982428,1724651452400,-541.75,0.00012809,2]
[335982429,1724651452409,-500.0,0.00012809,2]
[335982430,1724651452418,-500.0,0.00012809,2]
[335982431,1724651452427,-500.0,0.00012809,2]
[335982432,1724651452436,-500.0,0.00012809,2]
[335982433,1724651452445,-990.89,0.00012809,2]
[335982434,1724651452455,-500.0,0.00012809,2]
[335982435,1724651452464,-500.0,0.00012809,2]
[335982436,1724651452472,-500.0,0.00012809,2]
[335982437,1724651452481,-500.0,0.00012809,2]
[335982438,1724651452490,-500.0,0.00012809,2]
[335982439,1724651452500,-555.61,0.00012809,2]
[335982440,1724651452509,-500.0,0.00012809,2]
[335982441,1724651452518,-505.56,0.00012809,2]
[335982442,1724651452527,-504.61,0.00012809,2]
[335982443,1724651452536,-500.0,0.00012809,2]
[335982444,1724651452545,-500.0,0.00012809,2]
[335982445,1724651452554,-523.95,0.00012809,2]
[335982446,1724651452564,-500.0,0.00012809,2]
[335982447,1724651452573,-211.98822254,0.00012809,2]
[335982449,1724651452581,-500.0,0.00012809,2]
[335982450,1724651452591,-500.0,0.00012809,2]
[335982451,1724651452600,-679.75,0.00012809,2]
[335982452,1724651452610,-500.0,0.00012809,2]
[335982453,1724651452619,-500.0,0.00012809,2]
[335982454,1724651452628,-527.14,0.00012809,2]
[335982455,1724651452637,-500.0,0.00012809,2]
[335982456,1724651452646,-500.0,0.00012809,2]
[335982457,1724651452655,-500.0,0.00012809,2]
[335982458,1724651452664,-500.0,0.00012809,2]
[335982459,1724651452674,-500.0,0.00012809,2]
[335982460,1724651452683,-912.48,0.00012809,2]
[335982461,1724651452692,-500.0,0.00012809,2]
[335982462,1724651452701,-500.0,0.00012809,2]
[335982463,1724651452710,-616.87,0.00012809,2]
[335982464,1724651452719,-500.0,0.00012809,2]
[335982465,1724651452728,-500.0,0.00012809,2]
[335982466,1724651452737,-500.0,0.00012809,2]
[335982467,1724651452750,-500.0,0.00012809,2]
[335982468,1724651452759,-985.31,0.00012809,2]
[335982469,1724651452769,-500.0,0.00012809,2]
[335982470,1724651452778,-926.84,0.00012809,2]
[335982471,1724651452787,-886.75,0.00012809,2]
[335982472,1724651452796,-500.0,0.00012809,2]
[335982473,1724651452806,-661.94,0.00012809,2]
[335982474,1724651452815,-500.0,0.00012809,2]
[335982475,1724651452824,-755.2,0.00012809,2]
[335982476,1724651452833,-500.0,0.00012809,2]
[335982477,1724651452843,-518.46,0.00012809,2]
[335982478,1724651452852,-500.0,0.00012809,2]
[335982479,1724651452861,-500.0,0.00012809,2]
[335982480,1724651452870,-424.75559775,0.00012809,2]
[335982481,1724651452879,-500.0,0.00012809,2]
[335982482,1724651452888,-500.0,0.00012809,2]
[335982483,1724651452897,-792.85,0.00012809,2]
[335982484,1724651452906,-500.0,0.00012809,2]
[335982485,1724651452916,-884.75,0.00012809,2]
[335982486,1724651452925,-584.75050944,0.00012809,2]
[335982487,1724651452934,-559.2,0.00012809,2]
[335982488,1724651452942,-677.66,0.00012809,2]
[335982489,1724651452951,-500.0,0.00012809,2]
[335982490,1724651452960,-500.0,0.00012809,2]
[335982491,1724651452969,-500.0,0.00012809,2]
[335982492,1724651452979,-500.0,0.00012809,2]
[335982493,1724651452988,-674.71,0.00012809,2]
[335982494,1724651452997,-500.0,0.00012809,2]
[335982495,1724651453006,-617.15,0.00012809,2]
[335982496,1724651453014,-500.0,0.00012809,2]
[335982497,1724651453023,-673.6,0.00012809,2]
[335982498,1724651453032,-500.0,0.00012809,2]
[335982499,1724651453041,-500.0,0.00012809,2]
[335982500,1724651453051,-500.0,0.00012809,2]
[335982501,1724651453060,-595.12177706,0.00012809,2]
[335982502,1724651453069,-637.84,0.00012809,2]
[335982503,1724651453078,-592.31,0.00012809,2]
[335982504,1724651453087,-500.0,0.00012809,2]
[335982505,1724651453096,-954.61,0.00012809,2]
[335982506,1724651453105,-500.0,0.00012809,2]
[335982507,1724651453114,-500.0,0.00012809,2]
[335982508,1724651453123,-508.89,0.00012809,2]
[335982509,1724651453132,-500.0,0.00012809,2]
[335982510,1724651453141,-870.47,0.00012809,2]
[335982511,1724651453150,-500.0,0.00012809,2]
[335982512,1724651453159,-500.0,0.00012809,2]
[335982513,1724651453168,-656.37,0.00012809,2]
[335982514,1724651453177,-628.64,0.00012809,2]
[335982515,1724651453186,-500.0,0.00012809,2]
[335982516,1724651453195,-500.0,0.00012809,2]
[335982517,1724651453205,-982.63,0.00012809,2]
[335982518,1724651453214,-500.0,0.00012809,2]
[335982519,1724651453223,-500.0,0.00012809,2]
[335982520,1724651453232,-500.0,0.00012809,2]
[335982521,1724651453241,-500.0,0.00012809,2]
[335982522,1724651453250,-577.7,0.00012809,2]
[335982523,1724651453259,-500.0,0.00012809,2]
[335982524,1724651453268,-500.0,0.00012809,2]
[335982525,1724651453278,-500.0,0.00012809,2]
[335982526,1724651453287,-504.1,0.00012809,2]
[335982527,1724651453295,-530.70952098,0.00012809,2]
[335982528,1724651453304,-625.27,0.00012809,2]
[335982529,1724651453313,-500.0,0.00012809,2]
[335982530,1724651453322,-673.1,0.00012809,2]
[335982531,1724651453331,-563.96,0.00012809,2]
[335982532,1724651453340,-678.0,0.00012809,2]
[335982533,1724651453349,-500.0,0.00012809,2]
[335982534,1724651453358,-500.0,0.00012809,2]
[335982535,1724651453367,-892.42,0.00012809,2]
[335982536,1724651453378,-749.98,0.00012809,2]
[335982537,1724651453387,-615.03,0.00012809,2]
[335982538,1724651453397,-580.33,0.00012809,2]
[335982539,1724651453406,-500.0,0.00012809,2]
[335982540,1724651453415,-500.0,0.00012809,2]
[335982541,1724651453424,-1036.14,0.00012809,2]
[335982542,1724651453434,-579.77,0.00012809,2]
[335982543,1724651453444,-1156.49,0.00012809,2]
[335982544,1724651453455,-500.0,0.00012809,2]
[335982545,1724651453464,-500.0,0.00012809,2]
[335982546,1724651453473,-500.0,0.00012809,2]
[335982547,1724651453482,-500.0,0.00012809,2]
[335982548,1724651453491,-500.0,0.00012809,2]
[335982549,1724651453500,-500.0,0.00012809,2]
[335982550,1724651453509,-500.0,0.00012809,2]
[335982551,1724651453518,-595.05,0.00012809,2]
[335982552,1724651453527,-500.0,0.00012809,2]
[335982553,1724651453536,-562.87,0.00012809,2]
[335982554,1724651453545,-500.0,0.00012809,2]
[335982555,1724651453554,-803.47,0.00012809,2]
[335982556,1724651453563,-593.23,0.00012809,2]
[335982557,1724651453572,-697.5,0.00012809,2]
[335982558,1724651453582,-659.05,0.00012809,2]
[335982559,1724651453590,-500.0,0.00012809,2]
[335982560,1724651453600,-500.0,0.00012809,2]
[335982561,1724651453608,-500.0,0.00012809,2]
[335982562,1724651453618,-500.0,0.00012809,2]
[335982563,1724651453627,-500.0,0.00012809,2]
[335982564,1724651453635,-500.0,0.00012809,2]
[335982565,1724651453644,-600.19421187,0.00012821,2]
[335982566,1724651453654,-1000.0,0.00012821,2]
[335982567,1724651453663,-473.0804863,0.00012886,2]
[335982568,1724651453672,-308.8390755,0.00012886,2]
[335982569,1724651453681,-394.68116315,0.00012898,2]
[335982570,1724651453690,-222.64749043,0.00012898,2]
[335982571,1724651453700,-7995.22978419,0.000129,2]
[335982572,1724651453712,-272.31321847,0.00012934,2]
[335982573,1724651453722,-154.76012181,0.00012934,2]
[335982574,1724651453731,-154.90118129,0.00012971,2]
[335982575,1724651453742,-290.53883766,0.00012971,2]
[335982576,1724651453754,-2284.12528389,0.00012971,3]
[335982577,1724651453763,-500.0,0.00012972,2]
[335982578,1724651453772,-500.0,0.00012972,2]
[335982579,1724651453781,-150.112233,0.00013,2]
[335982580,1724651453790,-150.112233,0.00013,2]
[335982581,1724651453800,-150.112233,0.00013,2]
[335982582,1724651453809,-150.112233,0.00013,2]
[335982583,1724651453818,-150.112233,0.00013,2]
[335982584,1724651453827,-154.778235,0.00013,2]
[335982585,1724651453837,-500.0,0.00013,2]
[335982586,1724651453846,-863.13231421,0.00013,2]
[335982587,1724651453855,-8895.04439683,0.0001305,2]
[335982588,1724651453864,-743.4,0.0001307,2]
[335982589,1724651453873,-1867.14,0.0001307,2]
[335982590,1724651453882,-500.0,0.0001307,2]
[335982591,1724651453892,-569.25,0.0001307,2]
[335982592,1724651453901,-500.0,0.0001307,2]
[335982593,1724651453910,-595.62,0.0001307,2]
[335982594,1724651453919,-500.0,0.0001307,2]
[335982595,1724651453929,-500.0,0.00013079,2]
[335982596,1724651453938,-801.54,0.00013079,2]
[335982597,1724651453948,-9038.31,0.00013079,2]
[335982598,1724651453958,-500.0,0.00013079,2]
[335982599,1724651453967,-2432.08,0.00013079,2]
[335982600,1724651453977,-500.0,0.00013079,2]
[335982601,1724651453986,-564.67,0.0001308,2]
[335982602,1724651453996,-500.0,0.0001308,2]
[335982603,1724651454005,-653.9,0.0001308,2]
[335982604,1724651454015,-500.0,0.0001308,2]
[335982605,1724651454024,-500.0,0.0001308,2]
[335982606,1724651454033,-500.0,0.0001308,2]
[335982607,1724651454042,-500.0,0.0001308,2]
[335982608,1724651454052,-500.0,0.0001308,2]
[335982609,1724651454061,-9737.48,0.0001308,2]
[335982610,1724651454070,-500.0,0.0001308,2]
[335982611,1724651454079,-2600.67,0.0001308,2]
[335982612,1724651454089,-500.0,0.0001308,2]
[335982613,1724651454099,-622.95,0.0001308,2]
[335982614,1724651454108,-735.22,0.0001308,2]
[335982615,1724651454118,-4078.22,0.0001308,2]
[335982616,1724651454128,-500.0,0.0001308,2]
[335982617,1724651454138,-500.0,0.0001308,2]
[335982618,1724651454147,-500.0,0.0001308,2]
[335982619,1724651454156,-500.0,0.0001308,2]
[335982620,1724651454166,-2984.54,0.0001308,2]
[335982621,1724651454175,-1214.86,0.0001308,2]
[335982622,1724651454185,-500.0,0.0001308,2]
[335982623,1724651454195,-500.0,0.0001308,2]
[335982624,1724651454207,-500.0,0.0001308,2]
[335982625,1724651454217,-551.81502551,0.0001308,2]
[335982626,1724651454227,-558.88,0.0001308,2]
[335982627,1724651454236,-500.0,0.0001308,2]
[335982628,1724651454246,-500.0,0.0001308,2]
[335982629,1724651454255,-626.45,0.0001308,2]
[335982630,1724651454264,-500.0,0.0001308,2]
[335982631,1724651454322,-500.0,0.0001308,2]
[335982632,1724651454332,-500.0,0.0001308,2]
[335982633,1724651454342,-23655.5,0.0001308,2]
[335982634,1724651454351,-500.0,0.0001308,2]
[335982635,1724651454360,-500.0,0.0001308,2]
[335982636,1724651454370,-500.0,0.0001308,2]
[335982637,1724651454381,-500.0,0.0001308,2]
[335982638,1724651454390,-664.44,0.0001308,2]
[335982639,1724651454399,-634.91,0.0001308,2]
[335982640,1724651454408,-500.0,0.0001308,2]
[335982641,1724651454417,-640.98,0.0001308,2]
[335982642,1724651454427,-1445.08,0.0001308,2]
[335982643,1724651454436,-565.55,0.0001308,2]
[335982644,1724651454446,-500.0,0.0001308,2]
[335982645,1724651454456,-593.61,0.0001308,2]